[Event "Titled Tuesday Blitz August 10 2021"]
[White "Rastbod, Ali"]
[Black "Gupta, Abhijeet"]
[WhiteFideId "12567477"]
[BlackFideId "5010608"]
[WhiteElo "2226"]
[BlackElo "2549"]
[Result "1/2-1/2"]
[Round "09"]
[TimeControl "180+1"]
[Date "2021.08.10"]
[WhiteClock "0:00:11"]
[BlackClock "0:00:18"]

1. e4 {[%clk 0:03:00]}  c5 {[%clk 0:02:58]} 2. c3 {[%clk 0:02:59]}  d5 {[%clk 0:02:57]} 3. exd5 {[%clk 0:02:58]}  Qxd5 {[%clk 0:02:58]} 4. d4 {[%clk 0:02:58]}  Nc6 {[%clk 0:02:58]} 5. Nf3 {[%clk 0:02:58]}  Bf5 {[%clk 0:02:58]} 6. Be2 {[%clk 0:02:55]}  e6 {[%clk 0:02:41]} 7. Na3 {[%clk 0:02:46]}  O-O-O {[%clk 0:02:21]} 8. Nc2 {[%clk 0:02:14]}  cxd4 {[%clk 0:02:08]} 9. Ncxd4 {[%clk 0:02:08]}  Nxd4 {[%clk 0:02:07]} 10. cxd4 {[%clk 0:02:09]}  Bb4+ {[%clk 0:02:04]} 11. Bd2 {[%clk 0:02:08]}  Bxd2+ {[%clk 0:02:01]} 12. Qxd2 {[%clk 0:02:08]}  Kb8 {[%clk 0:02:01]} 13. O-O {[%clk 0:02:06]}  Nf6 {[%clk 0:02:02]} 14. Rac1 {[%clk 0:02:00]}  Bg6 {[%clk 0:01:52]} 15. Bc4 {[%clk 0:01:49]}  Qd6 {[%clk 0:01:50]} 16. Rfd1 {[%clk 0:01:45]}  Bh5 {[%clk 0:01:50]} 17. Be2 {[%clk 0:01:42]}  Bxf3 {[%clk 0:01:39]} 18. Bxf3 {[%clk 0:01:42]}  Rc8 {[%clk 0:01:40]} 19. Rc3 {[%clk 0:01:41]}  Rhd8 {[%clk 0:01:35]} 20. Rb3 {[%clk 0:01:39]}  b6 {[%clk 0:01:33]} 21. a4 {[%clk 0:01:30]}  Rc4 {[%clk 0:01:29]} 22. a5 {[%clk 0:01:25]}  Rxd4 {[%clk 0:01:08]} 23. Qxd4 {[%clk 0:01:23]}  Qxd4 {[%clk 0:01:08]} 24. Rxd4 {[%clk 0:01:24]}  Rxd4 {[%clk 0:01:09]} 25. axb6 {[%clk 0:01:25]}  a5 {[%clk 0:01:09]} 26. Rb5 {[%clk 0:01:19]}  a4 {[%clk 0:00:39]} 27. Ra5 {[%clk 0:01:13]}  Nd5 {[%clk 0:00:39]} 28. Ra7 {[%clk 0:01:10]}  e5 {[%clk 0:00:36]} 29. h3 {[%clk 0:00:38]}  e4 {[%clk 0:00:34]} 30. Bg4 {[%clk 0:00:38]}  Rb4 {[%clk 0:00:30]} 31. Rxf7 {[%clk 0:00:25]}  Rxb2 {[%clk 0:00:29]} 32. Be6 {[%clk 0:00:17]}  Nxb6 {[%clk 0:00:29]} 33. Rxg7 {[%clk 0:00:18]}  a3 {[%clk 0:00:23]} 34. Rxh7 {[%clk 0:00:17]}  Rc2 {[%clk 0:00:23]} 35. Rh4 {[%clk 0:00:14]}  Nc4 {[%clk 0:00:14]} 36. Rh8+ {[%clk 0:00:13]}  Ka7 {[%clk 0:00:13]} 37. Bd5 {[%clk 0:00:09]}  Nb6 {[%clk 0:00:13]} 38. Be6 {[%clk 0:00:06]}  Rc6 {[%clk 0:00:13]} 39. Bf7 {[%clk 0:00:06]}  Rc7 {[%clk 0:00:12]} 40. Bb3 {[%clk 0:00:05]}  Rc3 {[%clk 0:00:13]} 41. Rh7+ {[%clk 0:00:04]}  Ka6 {[%clk 0:00:13]} 42. Bg8 {[%clk 0:00:05]}  Nc4 {[%clk 0:00:11]} 43. Rh6+ {[%clk 0:00:02]}  Ka5 {[%clk 0:00:11]} 44. Rh7 {[%clk 0:00:02]}  Kb6 {[%clk 0:00:11]} 45. Rh6+ {[%clk 0:00:02]}  Kc5 {[%clk 0:00:10]} 46. Rh7 {[%clk 0:00:02]}  Kb6 {[%clk 0:00:10]} 47. Rh6+ {[%clk 0:00:02]}  Ka7 {[%clk 0:00:10]} 48. Rh7+ {[%clk 0:00:03]}  Kb8 {[%clk 0:00:11]} 49. Rh6 {[%clk 0:00:03]}  a2 {[%clk 0:00:10]} 50. Ra6 {[%clk 0:00:03]}  Ra3 {[%clk 0:00:10]} 51. Rxa3 {[%clk 0:00:03]}  Nxa3 {[%clk 0:00:09]} 52. Bxa2 {[%clk 0:00:03]}  Kc7 {[%clk 0:00:10]} 53. Bb3 {[%clk 0:00:04]}  Kd6 {[%clk 0:00:11]} 54. h4 {[%clk 0:00:05]}  Ke5 {[%clk 0:00:12]} 55. g3 {[%clk 0:00:05]}  Nb5 {[%clk 0:00:12]} 56. Kg2 {[%clk 0:00:06]}  Nd4 {[%clk 0:00:13]} 57. Bd1 {[%clk 0:00:06]}  Nf5 {[%clk 0:00:13]} 58. Be2 {[%clk 0:00:06]}  Nd4 {[%clk 0:00:13]} 59. Bg4 {[%clk 0:00:06]}  Kf6 {[%clk 0:00:13]} 60. Bd1 {[%clk 0:00:07]}  Ke5 {[%clk 0:00:14]} 61. Kf1 {[%clk 0:00:07]}  Nf5 {[%clk 0:00:14]} 62. Ke1 {[%clk 0:00:07]}  e3 {[%clk 0:00:14]} 63. Bc2 {[%clk 0:00:08]}  exf2+ {[%clk 0:00:14]} 64. Kxf2 {[%clk 0:00:08]}  Nxg3 {[%clk 0:00:14]} 65. Kxg3 {[%clk 0:00:08]}  Kf6 {[%clk 0:00:15]} 66. Kf4 {[%clk 0:00:08]}  Kg7 {[%clk 0:00:16]} 67. Kg5 {[%clk 0:00:08]}  Kh8 {[%clk 0:00:16]} 68. h5 {[%clk 0:00:09]}  Kg7 {[%clk 0:00:16]} 69. h6+ {[%clk 0:00:09]}  Kh8 {[%clk 0:00:17]} 70. h7 {[%clk 0:00:10]}  Kg7 {[%clk 0:00:17]} 71. h8=Q+ {[%clk 0:00:11]}  Kxh8 {[%clk 0:00:18]} 1/2-1/2


[Site "https://www.chess.com"]

[Event "Titled Tuesday Blitz August 10 2021"]
[White "Remizov, Yaroslav"]
[Black "Kozionov, Kirill"]
[WhiteFideId "34134015"]
[BlackFideId "24101729"]
[WhiteElo "2339"]
[BlackElo "2501"]
[Result "1-0"]
[Round "09"]
[TimeControl "180+1"]
[Date "2021.08.10"]
[WhiteClock "0:00:06"]
[BlackClock "0:00:02"]

1. e4 {[%clk 0:02:58]}  c5 {[%clk 0:02:56]} 2. Nf3 {[%clk 0:02:58]}  d6 {[%clk 0:02:56]} 3. d4 {[%clk 0:02:59]}  cxd4 {[%clk 0:02:57]} 4. Nxd4 {[%clk 0:02:59]}  Nf6 {[%clk 0:02:57]} 5. Nc3 {[%clk 0:03:00]}  a6 {[%clk 0:02:57]} 6. Be3 {[%clk 0:02:57]}  e5 {[%clk 0:02:57]} 7. Nb3 {[%clk 0:02:57]}  Be6 {[%clk 0:02:57]} 8. f3 {[%clk 0:02:57]}  h5 {[%clk 0:02:57]} 9. Qd2 {[%clk 0:02:57]}  Nbd7 {[%clk 0:02:57]} 10. O-O-O {[%clk 0:02:50]}  Be7 {[%clk 0:02:35]} 11. Nd5 {[%clk 0:02:43]}  Bxd5 {[%clk 0:02:14]} 12. exd5 {[%clk 0:02:44]}  b6 {[%clk 0:02:13]} 13. Kb1 {[%clk 0:02:37]}  Nc5 {[%clk 0:02:09]} 14. Nxc5 {[%clk 0:01:42]}  bxc5 {[%clk 0:02:10]} 15. Bxc5 {[%clk 0:01:42]}  dxc5 {[%clk 0:01:58]} 16. d6 {[%clk 0:01:42]}  O-O {[%clk 0:01:45]} 17. dxe7 {[%clk 0:01:42]}  Qxe7 {[%clk 0:01:46]} 18. Bc4 {[%clk 0:01:41]}  Rfd8 {[%clk 0:01:33]} 19. Qe3 {[%clk 0:01:31]}  Rd4 {[%clk 0:01:33]} 20. Rxd4 {[%clk 0:01:22]}  cxd4 {[%clk 0:01:31]} 21. Qd3 {[%clk 0:01:22]}  a5 {[%clk 0:01:27]} 22. a3 {[%clk 0:01:22]}  Qc5 {[%clk 0:00:57]} 23. Re1 {[%clk 0:01:22]}  Rc8 {[%clk 0:00:55]} 24. Ba2 {[%clk 0:01:05]}  a4 {[%clk 0:00:41]} 25. Qf5 {[%clk 0:00:59]}  Re8 {[%clk 0:00:35]} 26. g4 {[%clk 0:00:48]}  hxg4 {[%clk 0:00:27]} 27. fxg4 {[%clk 0:00:49]}  Re7 {[%clk 0:00:27]} 28. g5 {[%clk 0:00:48]}  Nd5 {[%clk 0:00:27]} 29. g6 {[%clk 0:00:39]}  Nf6 {[%clk 0:00:05]} 30. gxf7+ {[%clk 0:00:32]}  Kf8 {[%clk 0:00:06]} 31. Qh3 {[%clk 0:00:32]}  Rxf7 {[%clk 0:00:06]} 32. Bxf7 {[%clk 0:00:20]}  Kxf7 {[%clk 0:00:07]} 33. Qf5 {[%clk 0:00:21]}  Qd6 {[%clk 0:00:03]} 34. Qxe5 {[%clk 0:00:20]}  Qd7 {[%clk 0:00:02]} 35. Rd1 {[%clk 0:00:20]}  Qh3 {[%clk 0:00:02]} 36. Qxd4 {[%clk 0:00:19]}  Kg8 {[%clk 0:00:02]} 37. Qc4+ {[%clk 0:00:19]}  Kh7 {[%clk 0:00:01]} 38. Qxa4 {[%clk 0:00:18]}  Qxh2 {[%clk 0:00:01]} 39. Qd4 {[%clk 0:00:18]}  Qh5 {[%clk 0:00:01]} 40. a4 {[%clk 0:00:16]}  Kg8 {[%clk 0:00:01]} 41. Qd3 {[%clk 0:00:14]}  Qe5 {[%clk 0:00:01]} 42. b4 {[%clk 0:00:13]}  Kf7 {[%clk 0:00:01]} 43. a5 {[%clk 0:00:12]}  Qf4 {[%clk 0:00:01]} 44. c3 {[%clk 0:00:11]}  Ne4 {[%clk 0:00:02]} 45. Kc2 {[%clk 0:00:09]}  Nf2 {[%clk 0:00:02]} 46. Qd7+ {[%clk 0:00:08]}  Kg8 {[%clk 0:00:02]} 47. Qe8+ {[%clk 0:00:08]}  Kh7 {[%clk 0:00:03]} 48. Rd2 {[%clk 0:00:06]}  Qf5+ {[%clk 0:00:02]} 49. Kb2 {[%clk 0:00:06]}  Ne4 {[%clk 0:00:02]} 50. Rh2+ {[%clk 0:00:06]}  Qh5 {[%clk 0:00:02]} 51. Rxh5# {[%clk 0:00:06]} 1-0


[Site "https://www.chess.com"]

[Event "Titled Tuesday Blitz August 10 2021"]
[White "Yoo, Christopher Woojin"]
[Black "Sevian, Samuel"]
[WhiteFideId "30909694"]
[BlackFideId "2040506"]
[WhiteElo "2105"]
[BlackElo "2993"]
[Result "0-1"]
[Round "09"]
[TimeControl "180+1"]
[Date "2021.08.10"]
[WhiteClock "0:00:02"]
[BlackClock "0:00:16"]

1. e4 {[%clk 0:03:00]}  e5 {[%clk 0:02:52]} 2. Nf3 {[%clk 0:03:00]}  Nf6 {[%clk 0:02:53]} 3. Nc3 {[%clk 0:02:53]}  Nc6 {[%clk 0:02:50]} 4. Bb5 {[%clk 0:02:53]}  Nd4 {[%clk 0:02:49]} 5. O-O {[%clk 0:02:50]}  Bc5 {[%clk 0:02:47]} 6. Nxe5 {[%clk 0:02:30]}  c6 {[%clk 0:02:47]} 7. Bc4 {[%clk 0:02:24]}  O-O {[%clk 0:02:47]} 8. Nxf7 {[%clk 0:02:19]}  Rxf7 {[%clk 0:02:45]} 9. Bxf7+ {[%clk 0:02:20]}  Kxf7 {[%clk 0:02:46]} 10. d3 {[%clk 0:02:15]}  d6 {[%clk 0:02:46]} 11. h3 {[%clk 0:02:05]}  Kg8 {[%clk 0:01:14]} 12. Be3 {[%clk 0:02:04]}  Bb6 {[%clk 0:01:10]} 13. Ne2 {[%clk 0:01:59]}  Ne6 {[%clk 0:01:04]} 14. Bxb6 {[%clk 0:01:41]}  Qxb6 {[%clk 0:01:05]} 15. b3 {[%clk 0:01:40]}  d5 {[%clk 0:01:05]} 16. Ng3 {[%clk 0:01:23]}  Nf4 {[%clk 0:00:50]} 17. Qd2 {[%clk 0:01:16]}  Ng6 {[%clk 0:00:41]} 18. Rae1 {[%clk 0:01:13]}  dxe4 {[%clk 0:00:41]} 19. dxe4 {[%clk 0:01:12]}  Be6 {[%clk 0:00:41]} 20. e5 {[%clk 0:01:10]}  Rd8 {[%clk 0:00:40]} 21. Qg5 {[%clk 0:01:08]}  Nd5 {[%clk 0:00:39]} 22. Ne4 {[%clk 0:00:30]}  Rf8 {[%clk 0:00:39]} 23. c4 {[%clk 0:00:23]}  Ndf4 {[%clk 0:00:38]} 24. Qg3 {[%clk 0:00:20]}  h6 {[%clk 0:00:31]} 25. Qe3 {[%clk 0:00:10]}  Qc7 {[%clk 0:00:31]} 26. Nc5 {[%clk 0:00:10]}  Qe7 {[%clk 0:00:29]} 27. Nxe6 {[%clk 0:00:08]}  Qxe6 {[%clk 0:00:30]} 28. Qg3 {[%clk 0:00:06]}  Rf5 {[%clk 0:00:29]} 29. h4 {[%clk 0:00:06]}  Kh7 {[%clk 0:00:28]} 30. Re4 {[%clk 0:00:06]}  Qf7 {[%clk 0:00:25]} 31. Rfe1 {[%clk 0:00:04]}  Ne6 {[%clk 0:00:25]} 32. f3 {[%clk 0:00:03]}  Ngf4 {[%clk 0:00:25]} 33. Qg4 {[%clk 0:00:03]}  Nd3 {[%clk 0:00:20]} 34. R1e3 {[%clk 0:00:02]}  Ndf4 {[%clk 0:00:18]} 35. Qg3 {[%clk 0:00:02]}  Qd7 {[%clk 0:00:17]} 36. Re1 {[%clk 0:00:02]}  Qd2 {[%clk 0:00:17]} 37. Kh2 {[%clk 0:00:02]}  Rh5 {[%clk 0:00:16]} 38. Qg4 {[%clk 0:00:02]}  Rxh4+ {[%clk 0:00:16]} 0-1


[Site "https://www.chess.com"]

[Event "Titled Tuesday Blitz August 10 2021"]
[White "Bluebaum, Matthias"]
[Black "Ibrahimli, Murad"]
[WhiteFideId "24651516"]
[BlackFideId "13410229"]
[WhiteElo "2685"]
[BlackElo "2109"]
[Result "0-1"]
[Round "10"]
[TimeControl "180+1"]
[Date "2021.08.10"]
[WhiteClock "0:00:12"]
[BlackClock "0:00:06"]

1. d4 {[%clk 0:03:00]}  Nf6 {[%clk 0:02:59]} 2. c4 {[%clk 0:03:01]}  e6 {[%clk 0:02:58]} 3. Nc3 {[%clk 0:03:01]}  Bb4 {[%clk 0:02:58]} 4. e3 {[%clk 0:03:02]}  b6 {[%clk 0:02:56]} 5. Bd2 {[%clk 0:03:00]}  Bb7 {[%clk 0:02:56]} 6. Nf3 {[%clk 0:02:58]}  O-O {[%clk 0:02:55]} 7. Bd3 {[%clk 0:02:58]}  Bxc3 {[%clk 0:02:51]} 8. Bxc3 {[%clk 0:02:59]}  Be4 {[%clk 0:02:51]} 9. d5 {[%clk 0:02:42]}  Bxd3 {[%clk 0:02:42]} 10. Qxd3 {[%clk 0:02:41]}  Qe7 {[%clk 0:02:20]} 11. Nd4 {[%clk 0:02:07]}  Na6 {[%clk 0:02:16]} 12. dxe6 {[%clk 0:01:55]}  fxe6 {[%clk 0:02:14]} 13. f3 {[%clk 0:01:55]}  Nc5 {[%clk 0:02:14]} 14. Qc2 {[%clk 0:01:56]}  a5 {[%clk 0:02:06]} 15. b3 {[%clk 0:01:56]}  g6 {[%clk 0:01:41]} 16. O-O {[%clk 0:01:49]}  e5 {[%clk 0:01:41]} 17. Ne2 {[%clk 0:01:49]}  d5 {[%clk 0:01:29]} 18. cxd5 {[%clk 0:01:47]}  Nxd5 {[%clk 0:01:30]} 19. Bd2 {[%clk 0:01:47]}  e4 {[%clk 0:01:18]} 20. Qc4 {[%clk 0:01:42]}  Rad8 {[%clk 0:01:14]} 21. Nc3 {[%clk 0:01:41]}  c6 {[%clk 0:00:37]} 22. Nxe4 {[%clk 0:01:25]}  Nxe4 {[%clk 0:00:31]} 23. fxe4 {[%clk 0:01:25]}  b5 {[%clk 0:00:31]} 24. Qc2 {[%clk 0:01:25]}  Nf6 {[%clk 0:00:29]} 25. Bxa5 {[%clk 0:01:15]}  Ra8 {[%clk 0:00:28]} 26. Bb6 {[%clk 0:00:58]}  Qxe4 {[%clk 0:00:27]} 27. Qxe4 {[%clk 0:00:56]}  Nxe4 {[%clk 0:00:28]} 28. Rxf8+ {[%clk 0:00:56]}  Kxf8 {[%clk 0:00:28]} 29. a4 {[%clk 0:00:57]}  Nd2 {[%clk 0:00:17]} 30. Ra3 {[%clk 0:00:56]}  Nb1 {[%clk 0:00:14]} 31. Ra2 {[%clk 0:00:34]}  Nc3 {[%clk 0:00:11]} 32. Rf2+ {[%clk 0:00:34]}  Ke7 {[%clk 0:00:11]} 33. a5 {[%clk 0:00:34]}  Nd5 {[%clk 0:00:09]} 34. Bc5+ {[%clk 0:00:35]}  Ke6 {[%clk 0:00:10]} 35. b4 {[%clk 0:00:35]}  Nc7 {[%clk 0:00:08]} 36. e4 {[%clk 0:00:34]}  Na6 {[%clk 0:00:08]} 37. Bd4 {[%clk 0:00:23]}  Nxb4 {[%clk 0:00:08]} 38. Rf6+ {[%clk 0:00:23]}  Ke7 {[%clk 0:00:08]} 39. e5 {[%clk 0:00:24]}  Nd5 {[%clk 0:00:07]} 40. Bc5+ {[%clk 0:00:24]}  Kd7 {[%clk 0:00:08]} 41. e6+ {[%clk 0:00:24]}  Kc7 {[%clk 0:00:05]} 42. Rf7+ {[%clk 0:00:24]}  Kc8 {[%clk 0:00:05]} 43. e7 {[%clk 0:00:19]}  Nc7 {[%clk 0:00:02]} 44. Bb6 {[%clk 0:00:15]}  Ne8 {[%clk 0:00:03]} 45. Rxh7 {[%clk 0:00:15]}  Kd7 {[%clk 0:00:01]} 46. Bd8 {[%clk 0:00:13]}  c5 {[%clk 0:00:02]} 47. h4 {[%clk 0:00:09]}  b4 {[%clk 0:00:02]} 48. h5 {[%clk 0:00:10]}  b3 {[%clk 0:00:03]} 49. hxg6 {[%clk 0:00:03]}  b2 {[%clk 0:00:03]} 50. Rh3 {[%clk 0:00:03]}  b1=Q+ {[%clk 0:00:03]} 51. Kh2 {[%clk 0:00:04]}  Qxg6 {[%clk 0:00:04]} 52. Rg3 {[%clk 0:00:05]}  Qd6 {[%clk 0:00:04]} 53. Kh3 {[%clk 0:00:05]}  Rxa5 {[%clk 0:00:04]} 54. Bxa5 {[%clk 0:00:05]}  Kxe7 {[%clk 0:00:05]} 55. Bc3 {[%clk 0:00:05]}  Qd7+ {[%clk 0:00:05]} 56. Kh2 {[%clk 0:00:05]}  Kd8 {[%clk 0:00:05]} 57. Re3 {[%clk 0:00:05]}  Qh7+ {[%clk 0:00:05]} 58. Kg1 {[%clk 0:00:05]}  Nd6 {[%clk 0:00:05]} 59. Bf6+ {[%clk 0:00:04]}  Kd7 {[%clk 0:00:05]} 60. Rg3 {[%clk 0:00:03]}  Qf5 {[%clk 0:00:05]} 61. Bh4 {[%clk 0:00:03]}  Ne4 {[%clk 0:00:05]} 62. Rg7+ {[%clk 0:00:03]}  Kc6 {[%clk 0:00:05]} 63. Be1 {[%clk 0:00:02]}  Qe5 {[%clk 0:00:05]} 64. Rg6+ {[%clk 0:00:03]}  Kb5 {[%clk 0:00:05]} 65. Bh4 {[%clk 0:00:04]}  Qd4+ {[%clk 0:00:05]} 66. Kh2 {[%clk 0:00:04]}  c4 {[%clk 0:00:05]} 67. Rg8 {[%clk 0:00:04]}  c3 {[%clk 0:00:06]} 68. Rb8+ {[%clk 0:00:05]}  Kc4 {[%clk 0:00:06]} 69. Rc8+ {[%clk 0:00:06]}  Kb3 {[%clk 0:00:07]} 70. Rb8+ {[%clk 0:00:06]}  Kc2 {[%clk 0:00:07]} 71. Rc8 {[%clk 0:00:07]}  Nd2 {[%clk 0:00:07]} 72. Bg3 {[%clk 0:00:06]}  Qf6 {[%clk 0:00:06]} 73. Kh3 {[%clk 0:00:07]}  Qf5+ {[%clk 0:00:06]} 74. Kh4 {[%clk 0:00:08]}  Qxc8 {[%clk 0:00:07]} 75. Bf4 {[%clk 0:00:09]}  Ne4 {[%clk 0:00:07]} 76. Bd2 {[%clk 0:00:10]}  Qf5 {[%clk 0:00:07]} 77. g3 {[%clk 0:00:11]}  cxd2 {[%clk 0:00:07]} 78. g4 {[%clk 0:00:11]}  Qf2+ {[%clk 0:00:06]} 79. Kh3 {[%clk 0:00:12]}  Qg3# {[%clk 0:00:06]} 0-1


[Site "https://www.chess.com"]

[Event "Titled Tuesday Blitz August 10 2021"]
[White "Bologan, Victor"]
[Black "Indjic, Aleksandar"]
[WhiteFideId "13900048"]
[BlackFideId "911925"]
[WhiteElo "2511"]
[BlackElo "2643"]
[Result "0-1"]
[Round "10"]
[TimeControl "180+1"]
[Date "2021.08.10"]
[WhiteClock "0:00:01"]
[BlackClock "0:00:18"]

1. e4 {[%clk 0:03:00]}  c5 {[%clk 0:02:59]} 2. Nf3 {[%clk 0:03:00]}  d6 {[%clk 0:02:58]} 3. d4 {[%clk 0:02:58]}  cxd4 {[%clk 0:02:59]} 4. Nxd4 {[%clk 0:02:58]}  Nf6 {[%clk 0:02:58]} 5. Nc3 {[%clk 0:02:58]}  a6 {[%clk 0:02:59]} 6. Be3 {[%clk 0:02:58]}  e5 {[%clk 0:02:58]} 7. Nf3 {[%clk 0:02:56]}  Be7 {[%clk 0:02:57]} 8. Bc4 {[%clk 0:02:56]}  Be6 {[%clk 0:02:56]} 9. Bxe6 {[%clk 0:02:48]}  fxe6 {[%clk 0:02:57]} 10. Ng5 {[%clk 0:02:48]}  Qd7 {[%clk 0:02:56]} 11. Qf3 {[%clk 0:02:43]}  Nc6 {[%clk 0:02:20]} 12. Qh3 {[%clk 0:02:39]}  h6 {[%clk 0:02:07]} 13. Na4 {[%clk 0:02:24]}  Bd8 {[%clk 0:01:58]} 14. Nxe6 {[%clk 0:02:14]}  Ba5+ {[%clk 0:01:55]} 15. c3 {[%clk 0:02:12]}  Kf7 {[%clk 0:01:54]} 16. b4 {[%clk 0:01:59]}  Nxb4 {[%clk 0:01:52]} 17. cxb4 {[%clk 0:01:56]}  Bxb4+ {[%clk 0:01:52]} 18. Kf1 {[%clk 0:01:52]}  Qxa4 {[%clk 0:01:49]} 19. Nc7 {[%clk 0:01:41]}  Rad8 {[%clk 0:01:13]} 20. Qe6+ {[%clk 0:01:34]}  Kf8 {[%clk 0:01:12]} 21. Qc4 {[%clk 0:01:04]}  Rc8 {[%clk 0:01:03]} 22. a3 {[%clk 0:00:55]}  Qa5 {[%clk 0:00:52]} 23. Ne6+ {[%clk 0:00:35]}  Ke7 {[%clk 0:00:50]} 24. Qxb4 {[%clk 0:00:24]}  Qxb4 {[%clk 0:00:50]} 25. axb4 {[%clk 0:00:24]}  Kxe6 {[%clk 0:00:50]} 26. f3 {[%clk 0:00:25]}  Rc3 {[%clk 0:00:49]} 27. Kf2 {[%clk 0:00:25]}  Rc2+ {[%clk 0:00:49]} 28. Kg3 {[%clk 0:00:22]}  Rhc8 {[%clk 0:00:46]} 29. Rhd1 {[%clk 0:00:19]}  R8c3 {[%clk 0:00:45]} 30. Re1 {[%clk 0:00:16]}  Rb3 {[%clk 0:00:41]} 31. Rab1 {[%clk 0:00:15]}  Rbb2 {[%clk 0:00:40]} 32. Rxb2 {[%clk 0:00:12]}  Rxb2 {[%clk 0:00:41]} 33. Rc1 {[%clk 0:00:12]}  Rxb4 {[%clk 0:00:40]} 34. Rc7 {[%clk 0:00:11]}  g5 {[%clk 0:00:38]} 35. h4 {[%clk 0:00:10]}  gxh4+ {[%clk 0:00:31]} 36. Kxh4 {[%clk 0:00:09]}  Nxe4 {[%clk 0:00:25]} 37. Bxh6 {[%clk 0:00:05]}  Nf6+ {[%clk 0:00:22]} 38. g4 {[%clk 0:00:03]}  a5 {[%clk 0:00:19]} 39. Bg5 {[%clk 0:00:01]}  a4 {[%clk 0:00:18]} 0-1


[Site "https://www.chess.com"]

[Event "Titled Tuesday Blitz August 10 2021"]
[White "Gupta, Abhijeet"]
[Black "Kezin, Roman"]
[WhiteFideId "5010608"]
[BlackFideId "24124621"]
[WhiteElo "2549"]
[BlackElo "2570"]
[Result "0-1"]
[Round "10"]
[TimeControl "180+1"]
[Date "2021.08.10"]
[WhiteClock "0:00:04"]
[BlackClock "0:00:05"]

1. d4 {[%clk 0:03:00]}  d5 {[%clk 0:02:59]} 2. c4 {[%clk 0:03:00]}  e6 {[%clk 0:02:59]} 3. Nc3 {[%clk 0:02:59]}  c6 {[%clk 0:02:59]} 4. Nf3 {[%clk 0:02:58]}  Nf6 {[%clk 0:02:59]} 5. g3 {[%clk 0:02:57]}  dxc4 {[%clk 0:02:58]} 6. Bg2 {[%clk 0:02:58]}  b5 {[%clk 0:02:57]} 7. Ne5 {[%clk 0:02:57]}  Nd5 {[%clk 0:02:54]} 8. O-O {[%clk 0:02:54]}  Bb7 {[%clk 0:02:54]} 9. a4 {[%clk 0:02:50]}  a6 {[%clk 0:02:53]} 10. Ne4 {[%clk 0:02:50]}  Nd7 {[%clk 0:02:51]} 11. Nxf7 {[%clk 0:02:47]}  Kxf7 {[%clk 0:02:51]} 12. Ng5+ {[%clk 0:02:47]}  Ke7 {[%clk 0:02:52]} 13. e4 {[%clk 0:02:46]}  Nc7 {[%clk 0:02:51]} 14. b3 {[%clk 0:02:27]}  cxb3 {[%clk 0:01:32]} 15. Qf3 {[%clk 0:02:21]}  Qe8 {[%clk 0:01:24]} 16. Ba3+ {[%clk 0:02:18]}  Kd8 {[%clk 0:01:14]} 17. Nf7+ {[%clk 0:02:18]}  Kc8 {[%clk 0:01:15]} 18. Nxh8 {[%clk 0:02:05]}  Bxa3 {[%clk 0:01:04]} 19. Rxa3 {[%clk 0:02:05]}  Qxh8 {[%clk 0:01:04]} 20. Rxb3 {[%clk 0:02:05]}  Qf8 {[%clk 0:01:01]} 21. Qh5 {[%clk 0:01:59]}  Nf6 {[%clk 0:00:43]} 22. Qh3 {[%clk 0:01:58]}  Kb8 {[%clk 0:00:33]} 23. Rc1 {[%clk 0:01:56]}  Ka7 {[%clk 0:00:25]} 24. Qh4 {[%clk 0:01:44]}  bxa4 {[%clk 0:00:21]} 25. Rbb1 {[%clk 0:01:39]}  Nb5 {[%clk 0:00:21]} 26. Bf1 {[%clk 0:01:21]}  Rd8 {[%clk 0:00:20]} 27. d5 {[%clk 0:01:19]}  exd5 {[%clk 0:00:18]} 28. exd5 {[%clk 0:01:15]}  Nxd5 {[%clk 0:00:18]} 29. Qxa4 {[%clk 0:01:13]}  Ndc3 {[%clk 0:00:19]} 30. Rxc3 {[%clk 0:01:00]}  Nxc3 {[%clk 0:00:19]} 31. Rxb7+ {[%clk 0:00:59]}  Kxb7 {[%clk 0:00:20]} 32. Qxa6+ {[%clk 0:00:59]}  Kc7 {[%clk 0:00:21]} 33. Qa5+ {[%clk 0:01:00]}  Kd6 {[%clk 0:00:19]} 34. Qxc3 {[%clk 0:01:00]}  Qf6 {[%clk 0:00:19]} 35. Qd3+ {[%clk 0:01:00]}  Ke7 {[%clk 0:00:18]} 36. Qxh7 {[%clk 0:00:57]}  Rd2 {[%clk 0:00:17]} 37. Qe4+ {[%clk 0:00:57]}  Kd8 {[%clk 0:00:13]} 38. Qe3 {[%clk 0:00:45]}  Qd4 {[%clk 0:00:12]} 39. Qf3 {[%clk 0:00:44]}  c5 {[%clk 0:00:12]} 40. Qf8+ {[%clk 0:00:35]}  Kc7 {[%clk 0:00:12]} 41. Qf7+ {[%clk 0:00:28]}  Kb6 {[%clk 0:00:11]} 42. Qb3+ {[%clk 0:00:28]}  Kc7 {[%clk 0:00:09]} 43. Qf7+ {[%clk 0:00:27]}  Qd7 {[%clk 0:00:09]} 44. Qf4+ {[%clk 0:00:26]}  Qd6 {[%clk 0:00:09]} 45. Qf7+ {[%clk 0:00:26]}  Qd7 {[%clk 0:00:08]} 46. Qf8 {[%clk 0:00:19]}  Qd4 {[%clk 0:00:07]} 47. h4 {[%clk 0:00:18]}  Kb6 {[%clk 0:00:03]} 48. Qb8+ {[%clk 0:00:17]}  Kc6 {[%clk 0:00:04]} 49. Bb5+ {[%clk 0:00:16]}  Kd5 {[%clk 0:00:04]} 50. Qd8+ {[%clk 0:00:16]}  Ke4 {[%clk 0:00:04]} 51. Qe7+ {[%clk 0:00:15]}  Qe5 {[%clk 0:00:02]} 52. Qb7+ {[%clk 0:00:11]}  Kd4 {[%clk 0:00:02]} 53. Bf1 {[%clk 0:00:07]}  Kc3 {[%clk 0:00:02]} 54. Qa7 {[%clk 0:00:07]}  Qd4 {[%clk 0:00:03]} 55. Qa1+ {[%clk 0:00:07]}  Rb2 {[%clk 0:00:04]} 56. Qa3+ {[%clk 0:00:05]}  Kc2 {[%clk 0:00:04]} 57. Qf3 {[%clk 0:00:04]}  c4 {[%clk 0:00:04]} 58. Qe2+ {[%clk 0:00:04]}  Kb3 {[%clk 0:00:05]} 59. Qf3+ {[%clk 0:00:04]}  c3 {[%clk 0:00:05]} 60. Qf7+ {[%clk 0:00:04]}  Ka3 {[%clk 0:00:06]} 61. Qf8+ {[%clk 0:00:03]}  Ka2 {[%clk 0:00:06]} 62. Qf7+ {[%clk 0:00:03]}  Kb1 {[%clk 0:00:06]} 63. Qf5+ {[%clk 0:00:02]}  c2 {[%clk 0:00:06]} 64. Bd3 {[%clk 0:00:02]}  Kc1 {[%clk 0:00:04]} 65. Kg2 {[%clk 0:00:02]}  Kd2 {[%clk 0:00:04]} 66. Bxc2 {[%clk 0:00:02]}  Rxc2 {[%clk 0:00:04]} 67. Kh3 {[%clk 0:00:02]}  Kc3 {[%clk 0:00:04]} 68. f3 {[%clk 0:00:02]}  Rf2 {[%clk 0:00:03]} 69. f4 {[%clk 0:00:01]}  Kd2 {[%clk 0:00:04]} 70. Kg4 {[%clk 0:00:01]}  Ke3 {[%clk 0:00:04]} 71. h5 {[%clk 0:00:01]}  Rg2 {[%clk 0:00:04]} 72. Qe6+ {[%clk 0:00:01]}  Kf2 {[%clk 0:00:04]} 73. Kg5 {[%clk 0:00:01]}  Rxg3+ {[%clk 0:00:05]} 74. Kf5 {[%clk 0:00:01]}  Qd3+ {[%clk 0:00:04]} 75. Qe4 {[%clk 0:00:02]}  Qxe4+ {[%clk 0:00:04]} 76. Kxe4 {[%clk 0:00:02]}  Kg2 {[%clk 0:00:04]} 77. Kf5 {[%clk 0:00:03]}  Kh3 {[%clk 0:00:05]} 78. Ke6 {[%clk 0:00:03]}  Kh4 {[%clk 0:00:05]} 79. f5 {[%clk 0:00:04]}  Kxh5 {[%clk 0:00:05]} 0-1


[Site "https://www.chess.com"]